[Event "Titled Tuesday Blitz March 29 Late 2022"]
[White "Vifleemskaia, Svetlana"]
[Black "Maranhao,Jose Renato Ruiz"]
[WhiteFideId "4129490"]
[BlackFideId "2135175"]
[WhiteElo "1901"]
[BlackElo "1970"]
[Result "1-0"]
[Round "06"]
[TimeControl "180+1"]
[Date "2022.03.30"]
[WhiteClock "0:00:39"]
[BlackClock "0:00:06"]

1. d4 {[%clk 0:03:00]}  d5 {[%clk 0:03:00]} 2. c4 {[%clk 0:02:54]}  c6 {[%clk 0:03:00]} 3. cxd5 {[%clk 0:02:46]}  cxd5 {[%clk 0:02:59]} 4. Bf4 {[%clk 0:02:46]}  Nf6 {[%clk 0:02:59]} 5. Nc3 {[%clk 0:02:46]}  e6 {[%clk 0:02:57]} 6. e3 {[%clk 0:02:45]}  Nc6 {[%clk 0:02:56]} 7. Rc1 {[%clk 0:02:45]}  Bd6 {[%clk 0:02:53]} 8. Bxd6 {[%clk 0:02:44]}  Qxd6 {[%clk 0:02:54]} 9. f4 {[%clk 0:02:45]}  a6 {[%clk 0:02:28]} 10. Bd3 {[%clk 0:02:44]}  O-O {[%clk 0:02:28]} 11. Nf3 {[%clk 0:02:44]}  Qb4 {[%clk 0:02:02]} 12. Qd2 {[%clk 0:02:36]}  Rd8 {[%clk 0:01:55]} 13. O-O {[%clk 0:02:36]}  Bd7 {[%clk 0:01:51]} 14. Ne5 {[%clk 0:02:28]}  Rac8 {[%clk 0:01:39]} 15. Rc2 {[%clk 0:02:08]}  Qe7 {[%clk 0:01:33]} 16. Rfc1 {[%clk 0:02:08]}  Nb4 {[%clk 0:01:33]} 17. g4 {[%clk 0:02:00]}  Nxc2 {[%clk 0:01:31]} 18. Bxc2 {[%clk 0:02:00]}  h6 {[%clk 0:01:12]} 19. Qd3 {[%clk 0:01:48]}  Bb5 {[%clk 0:01:04]} 20. Qd2 {[%clk 0:01:30]}  Rc7 {[%clk 0:00:42]} 21. a4 {[%clk 0:01:29]}  Be8 {[%clk 0:00:39]} 22. Qd3 {[%clk 0:01:25]}  Rdc8 {[%clk 0:00:22]} 23. Rf1 {[%clk 0:01:25]}  Ne4 {[%clk 0:00:20]} 24. Nf3 {[%clk 0:00:42]}  f5 {[%clk 0:00:18]} 25. gxf5 {[%clk 0:00:41]}  exf5 {[%clk 0:00:19]} 26. Nxd5 {[%clk 0:00:40]}  Qb4 {[%clk 0:00:06]} 27. Nxb4 {[%clk 0:00:39]} 1-0


[Site "https://www.chess.com"]

[Event "Titled Tuesday Blitz March 29 Late 2022"]
[White "Al-Tarboush, Ward"]
[Black "Aydin, Gulenay"]
[WhiteFideId "7601450"]
[BlackFideId "34557431"]
[WhiteElo "2276"]
[BlackElo "1429"]
[Result "1-0"]
[Round "07"]
[TimeControl "180+1"]
[Date "2022.03.30"]
[WhiteClock "0:02:00"]
[BlackClock "0:00:02"]

1. e4 {[%clk 0:03:00]}  c5 {[%clk 0:03:00]} 2. Nf3 {[%clk 0:03:01]}  d6 {[%clk 0:03:00]} 3. d4 {[%clk 0:03:01]}  cxd4 {[%clk 0:03:01]} 4. Nxd4 {[%clk 0:03:02]}  Nf6 {[%clk 0:03:02]} 5. Nc3 {[%clk 0:03:03]}  g6 {[%clk 0:03:02]} 6. h3 {[%clk 0:03:03]}  Bg7 {[%clk 0:03:02]} 7. Be3 {[%clk 0:03:03]}  O-O {[%clk 0:02:55]} 8. Be2 {[%clk 0:03:04]}  Nc6 {[%clk 0:02:56]} 9. O-O {[%clk 0:03:04]}  a6 {[%clk 0:02:50]} 10. Qd2 {[%clk 0:03:03]}  Nxd4 {[%clk 0:02:49]} 11. Bxd4 {[%clk 0:03:03]}  b5 {[%clk 0:02:50]} 12. Rad1 {[%clk 0:03:02]}  Bb7 {[%clk 0:02:49]} 13. Bf3 {[%clk 0:03:00]}  Rc8 {[%clk 0:02:35]} 14. Rfe1 {[%clk 0:02:59]}  Nd7 {[%clk 0:02:28]} 15. Bxg7 {[%clk 0:02:56]}  Kxg7 {[%clk 0:02:29]} 16. Qd4+ {[%clk 0:02:56]}  Kg8 {[%clk 0:02:29]} 17. Bg4 {[%clk 0:02:55]}  Rc4 {[%clk 0:02:24]} 18. Qd2 {[%clk 0:02:54]}  Nf6 {[%clk 0:02:21]} 19. Bf3 {[%clk 0:02:53]}  Qc7 {[%clk 0:01:54]} 20. a3 {[%clk 0:02:53]}  Rc8 {[%clk 0:01:50]} 21. Re3 {[%clk 0:02:53]}  a5 {[%clk 0:01:43]} 22. Nxb5 {[%clk 0:02:51]}  Qb6 {[%clk 0:01:43]} 23. Nd4 {[%clk 0:02:44]}  e5 {[%clk 0:00:59]} 24. Ne2 {[%clk 0:02:44]}  Nxe4 {[%clk 0:00:51]} 25. Bxe4 {[%clk 0:02:44]}  Bxe4 {[%clk 0:00:50]} 26. Qxd6 {[%clk 0:02:43]}  Qxb2 {[%clk 0:00:35]} 27. Ng3 {[%clk 0:02:36]}  Bxc2 {[%clk 0:00:30]} 28. Rde1 {[%clk 0:02:34]}  e4 {[%clk 0:00:26]} 29. h4 {[%clk 0:02:32]}  Bd3 {[%clk 0:00:17]} 30. h5 {[%clk 0:02:30]}  Rc2 {[%clk 0:00:12]} 31. Nxe4 {[%clk 0:02:25]}  Bxe4 {[%clk 0:00:12]} 32. Rxe4 {[%clk 0:02:26]}  Rxf2 {[%clk 0:00:09]} 33. Re8+ {[%clk 0:02:26]}  Rxe8 {[%clk 0:00:09]} 34. Rxe8+ {[%clk 0:02:26]}  Kg7 {[%clk 0:00:10]} 35. Qf8+ {[%clk 0:02:23]}  Kf6 {[%clk 0:00:10]} 36. Qe7+ {[%clk 0:01:59]}  Kg7 {[%clk 0:00:08]} 37. h6+ {[%clk 0:01:59]}  Kxh6 {[%clk 0:00:06]} 38. Qh4+ {[%clk 0:02:00]}  Kg7 {[%clk 0:00:06]} 39. Qxf2 {[%clk 0:02:01]}  Qb1+ {[%clk 0:00:02]} 40. Qe1 {[%clk 0:02:00]}  Qb6+ {[%clk 0:00:02]} 41. Qe3 {[%clk 0:02:00]}  Qb1+ {[%clk 0:00:02]} 42. Kh2 {[%clk 0:02:00]}  Qf5 {[%clk 0:00:02]} 43. Qe5+ {[%clk 0:02:00]} 1-0


[Site "https://www.chess.com"]

[Event "Titled Tuesday Blitz March 29 Late 2022"]
[White "Ardila, Oscar Humberto"]
[Black "Kostiukov, Alexandr"]
[WhiteFideId "4404742"]
[BlackFideId "14108100"]
[WhiteElo "1966"]
[BlackElo "2202"]
[Result "0-1"]
[Round "07"]
[TimeControl "180+1"]
[Date "2022.03.30"]
[WhiteClock "0:00:25"]
[BlackClock "0:01:03"]

1. d4 {[%clk 0:03:00]}  g6 {[%clk 0:03:00]} 2. c4 {[%clk 0:02:58]}  Bg7 {[%clk 0:03:00]} 3. Nc3 {[%clk 0:02:58]}  d6 {[%clk 0:03:01]} 4. Nf3 {[%clk 0:02:55]}  e5 {[%clk 0:03:01]} 5. d5 {[%clk 0:02:48]}  f5 {[%clk 0:03:01]} 6. e4 {[%clk 0:02:48]}  Nf6 {[%clk 0:03:00]} 7. Bg5 {[%clk 0:02:47]}  h6 {[%clk 0:03:00]} 8. Bxf6 {[%clk 0:02:47]}  Qxf6 {[%clk 0:03:01]} 9. Bd3 {[%clk 0:02:47]}  O-O {[%clk 0:03:01]} 10. Qd2 {[%clk 0:02:33]}  Na6 {[%clk 0:02:58]} 11. O-O-O {[%clk 0:02:30]}  Nc5 {[%clk 0:02:58]} 12. Bc2 {[%clk 0:02:29]}  a5 {[%clk 0:02:58]} 13. Rhe1 {[%clk 0:02:20]}  Bd7 {[%clk 0:02:56]} 14. Kb1 {[%clk 0:02:19]}  a4 {[%clk 0:02:55]} 15. h3 {[%clk 0:02:13]}  g5 {[%clk 0:02:51]} 16. exf5 {[%clk 0:02:11]}  Bxf5 {[%clk 0:02:51]} 17. Ne4 {[%clk 0:02:09]}  Nxe4 {[%clk 0:02:38]} 18. Bxe4 {[%clk 0:02:09]}  Bxe4+ {[%clk 0:02:34]} 19. Rxe4 {[%clk 0:02:09]}  a3 {[%clk 0:02:35]} 20. b3 {[%clk 0:02:06]}  Rf7 {[%clk 0:02:07]} 21. Rde1 {[%clk 0:02:05]}  Qg6 {[%clk 0:02:03]} 22. Kc1 {[%clk 0:02:01]}  Rf4 {[%clk 0:02:00]} 23. Qc2 {[%clk 0:01:55]}  Qf7 {[%clk 0:01:47]} 24. Qd3 {[%clk 0:01:47]}  Rf8 {[%clk 0:01:44]} 25. Qd2 {[%clk 0:01:45]}  Rxf3 {[%clk 0:01:26]} 26. g3 {[%clk 0:01:42]}  Rxf2 {[%clk 0:01:24]} 27. R4e2 {[%clk 0:00:44]}  e4 {[%clk 0:01:14]} 28. Qe3 {[%clk 0:00:27]}  Rxe2 {[%clk 0:01:11]} 29. Rxe2 {[%clk 0:00:27]}  Qf1+ {[%clk 0:01:10]} 30. Re1 {[%clk 0:00:25]}  Qd3 {[%clk 0:01:08]} 31. Qxd3 {[%clk 0:00:25]}  exd3 {[%clk 0:01:09]} 32. Kd2 {[%clk 0:00:26]}  Rf2+ {[%clk 0:01:08]} 33. Kxd3 {[%clk 0:00:26]}  Rxa2 {[%clk 0:01:08]} 34. Re8+ {[%clk 0:00:26]}  Kf7 {[%clk 0:01:08]} 35. Rc8 {[%clk 0:00:26]}  Rg2 {[%clk 0:01:03]} 36. Rxc7+ {[%clk 0:00:26]}  Kg6 {[%clk 0:01:02]} 37. Rxb7 {[%clk 0:00:26]}  a2 {[%clk 0:01:03]} 38. Ra7 {[%clk 0:00:26]}  a1=Q {[%clk 0:01:03]} 39. Rxa1 {[%clk 0:00:25]}  Bxa1 {[%clk 0:01:03]} 0-1


[Site "https://www.chess.com"]

[Event "Titled Tuesday Blitz March 29 Late 2022"]
[White "Caruana, Fabiano"]
[Black "Sarana, Alexey"]
[WhiteFideId "2020009"]
[BlackFideId "24133795"]
[WhiteElo "2744"]
[BlackElo "2666"]
[Result "0-1"]
[Round "07"]
[TimeControl "180+1"]
[Date "2022.03.29"]
[WhiteClock "0:00:09"]
[BlackClock "0:01:17"]

1. d4 {[%clk 0:03:00]}  Nf6 {[%clk 0:02:58]} 2. Bf4 {[%clk 0:03:01]}  d5 {[%clk 0:02:58]} 3. e3 {[%clk 0:03:01]}  c5 {[%clk 0:02:59]} 4. Nf3 {[%clk 0:03:01]}  Nc6 {[%clk 0:03:00]} 5. Be2 {[%clk 0:03:00]}  e6 {[%clk 0:02:51]} 6. O-O {[%clk 0:02:57]}  Be7 {[%clk 0:02:51]} 7. c3 {[%clk 0:02:55]}  O-O {[%clk 0:02:50]} 8. h3 {[%clk 0:02:52]}  Ne4 {[%clk 0:02:48]} 9. Nbd2 {[%clk 0:02:51]}  f5 {[%clk 0:02:48]} 10. dxc5 {[%clk 0:02:43]}  Bxc5 {[%clk 0:02:46]} 11. c4 {[%clk 0:02:43]}  g5 {[%clk 0:02:27]} 12. Nxe4 {[%clk 0:02:17]}  dxe4 {[%clk 0:02:28]} 13. Nxg5 {[%clk 0:02:16]}  e5 {[%clk 0:02:28]} 14. Qd5+ {[%clk 0:01:50]}  Qxd5 {[%clk 0:02:27]} 15. cxd5 {[%clk 0:01:51]}  exf4 {[%clk 0:02:27]} 16. dxc6 {[%clk 0:01:52]}  fxe3 {[%clk 0:02:27]} 17. f3 {[%clk 0:01:10]}  h6 {[%clk 0:02:07]} 18. cxb7 {[%clk 0:01:05]}  Bxb7 {[%clk 0:01:57]} 19. Ne6 {[%clk 0:01:05]}  exf3 {[%clk 0:01:54]} 20. Nxc5 {[%clk 0:00:25]}  fxe2 {[%clk 0:01:54]} 21. Rfe1 {[%clk 0:00:21]}  Bd5 {[%clk 0:01:52]} 22. Rxe2 {[%clk 0:00:14]}  f4 {[%clk 0:01:53]} 23. Rc1 {[%clk 0:00:12]}  Rad8 {[%clk 0:01:48]} 24. g3 {[%clk 0:00:12]}  Bf3 {[%clk 0:01:47]} 25. Ree1 {[%clk 0:00:09]}  Rd2 {[%clk 0:01:47]} 26. gxf4 {[%clk 0:00:08]}  Rg2+ {[%clk 0:01:47]} 27. Kh1 {[%clk 0:00:09]}  Rxb2+ {[%clk 0:01:42]} 28. Kg1 {[%clk 0:00:09]}  Rg2+ {[%clk 0:01:43]} 29. Kh1 {[%clk 0:00:09]}  Rxa2+ {[%clk 0:01:43]} 30. Kg1 {[%clk 0:00:10]}  Rg2+ {[%clk 0:01:44]} 31. Kh1 {[%clk 0:00:10]}  Rf7 {[%clk 0:01:16]} 32. Rxe3 {[%clk 0:00:09]}  Rc2+ {[%clk 0:01:17]} 0-1


[Site "https://www.chess.com"]

[Event "Titled Tuesday Blitz March 29 Late 2022"]
[White "Diaz Perez, Michel Alejandro"]
[Black "Cardoso Cardoso, Jose Gabriel"]
[WhiteFideId "3517179"]
[BlackFideId "4430492"]
[WhiteElo "2337"]
[BlackElo "2451"]
[Result "1-0"]
[Round "07"]
[TimeControl "180+1"]
[Date "2022.03.29"]
[WhiteClock "0:00:49"]
[BlackClock "0:00:03"]

1. d4 {[%clk 0:02:57]}  g6 {[%clk 0:02:46]} 2. c4 {[%clk 0:02:57]}  Bg7 {[%clk 0:02:44]} 3. Nc3 {[%clk 0:02:56]}  d6 {[%clk 0:02:44]} 4. e4 {[%clk 0:02:56]}  Nf6 {[%clk 0:02:29]} 5. Be2 {[%clk 0:02:54]}  O-O {[%clk 0:02:25]} 6. h4 {[%clk 0:02:53]}  c5 {[%clk 0:02:20]} 7. d5 {[%clk 0:02:38]}  e6 {[%clk 0:02:18]} 8. h5 {[%clk 0:02:38]}  Re8 {[%clk 0:02:13]} 9. h6 {[%clk 0:02:33]}  Bh8 {[%clk 0:02:10]} 10. Bg5 {[%clk 0:02:34]}  Qa5 {[%clk 0:02:08]} 11. Kf1 {[%clk 0:02:30]}  exd5 {[%clk 0:02:05]} 12. exd5 {[%clk 0:02:22]}  Ne4 {[%clk 0:01:59]} 13. Nxe4 {[%clk 0:02:14]}  Rxe4 {[%clk 0:01:59]} 14. Qc2 {[%clk 0:02:12]}  Bf5 {[%clk 0:01:54]} 15. Bd3 {[%clk 0:02:09]}  Re5 {[%clk 0:01:25]} 16. Nf3 {[%clk 0:01:57]}  Bxd3+ {[%clk 0:01:24]} 17. Qxd3 {[%clk 0:01:58]}  Re8 {[%clk 0:01:22]} 18. Qb3 {[%clk 0:01:52]}  Qb6 {[%clk 0:01:18]} 19. Bf4 {[%clk 0:01:48]}  Nd7 {[%clk 0:01:13]} 20. Rb1 {[%clk 0:01:38]}  Re4 {[%clk 0:01:12]} 21. Bg3 {[%clk 0:01:34]}  Qa6 {[%clk 0:01:10]} 22. Qb5 {[%clk 0:01:21]}  Qxa2 {[%clk 0:01:00]} 23. Nd2 {[%clk 0:01:20]}  Nb6 {[%clk 0:00:55]} 24. Rd1 {[%clk 0:00:56]}  Rd4 {[%clk 0:00:50]} 25. Re1 {[%clk 0:00:57]}  Qa4 {[%clk 0:00:26]} 26. Qxa4 {[%clk 0:00:56]}  Nxa4 {[%clk 0:00:26]} 27. Nf3 {[%clk 0:00:57]}  Rxc4 {[%clk 0:00:25]} 28. b3 {[%clk 0:00:56]}  Rb4 {[%clk 0:00:20]} 29. bxa4 {[%clk 0:00:57]}  Rxa4 {[%clk 0:00:21]} 30. Bxd6 {[%clk 0:00:56]}  c4 {[%clk 0:00:21]} 31. Rh4 {[%clk 0:00:54]}  f5 {[%clk 0:00:05]} 32. Be5 {[%clk 0:00:53]}  Re8 {[%clk 0:00:03]} 33. Bxh8 {[%clk 0:00:51]}  Rxe1+ {[%clk 0:00:03]} 34. Nxe1 {[%clk 0:00:51]}  Kxh8 {[%clk 0:00:03]} 35. d6 {[%clk 0:00:49]} 1-0


[Site "https://www.chess.com"]

[Event "Titled Tuesday Blitz March 29 Late 2022"]
[White "Estrada Nieto, Julian"]
[Black "Almedina Ortiz, Edgardo J."]
[WhiteFideId "5101018"]
[BlackFideId "3100197"]
[WhiteElo "2246"]
[BlackElo "2217"]
[Result "0-1"]
[Round "07"]
[TimeControl "180+1"]
[Date "2022.03.30"]
[WhiteClock "0:00:07"]
[BlackClock "0:00:09"]

1. e4 {[%clk 0:03:00]}  e5 {[%clk 0:02:59]} 2. Nf3 {[%clk 0:03:00]}  Nc6 {[%clk 0:02:59]} 3. Bb5 {[%clk 0:03:00]}  a6 {[%clk 0:02:59]} 4. Ba4 {[%clk 0:03:00]}  Nf6 {[%clk 0:03:00]} 5. O-O {[%clk 0:03:00]}  Be7 {[%clk 0:02:59]} 6. Re1 {[%clk 0:02:59]}  b5 {[%clk 0:02:58]} 7. Bb3 {[%clk 0:03:00]}  d6 {[%clk 0:02:59]} 8. c3 {[%clk 0:02:59]}  O-O {[%clk 0:02:58]} 9. h3 {[%clk 0:02:59]}  Na5 {[%clk 0:02:59]} 10. Bc2 {[%clk 0:02:59]}  c5 {[%clk 0:02:59]} 11. d4 {[%clk 0:02:59]}  Qc7 {[%clk 0:02:59]} 12. Nbd2 {[%clk 0:02:59]}  cxd4 {[%clk 0:03:00]} 13. cxd4 {[%clk 0:02:59]}  Nc6 {[%clk 0:03:00]} 14. Nb3 {[%clk 0:02:56]}  a5 {[%clk 0:02:59]} 15. Be3 {[%clk 0:02:53]}  a4 {[%clk 0:02:59]} 16. Nbd2 {[%clk 0:02:40]}  Bd7 {[%clk 0:02:59]} 17. Rc1 {[%clk 0:02:35]}  Qb7 {[%clk 0:02:58]} 18. a3 {[%clk 0:02:31]}  Rfe8 {[%clk 0:02:38]} 19. Qe2 {[%clk 0:02:11]}  Bd8 {[%clk 0:02:12]} 20. d5 {[%clk 0:02:05]}  Na5 {[%clk 0:02:09]} 21. Bd3 {[%clk 0:02:05]}  Bb6 {[%clk 0:01:56]} 22. Rc3 {[%clk 0:01:53]}  Bxe3 {[%clk 0:01:53]} 23. Qxe3 {[%clk 0:01:52]}  Rec8 {[%clk 0:01:51]} 24. Rec1 {[%clk 0:01:44]}  Rxc3 {[%clk 0:01:49]} 25. Rxc3 {[%clk 0:01:38]}  Rc8 {[%clk 0:01:47]} 26. Be2 {[%clk 0:01:31]}  h6 {[%clk 0:01:44]} 27. Ne1 {[%clk 0:01:20]}  Qb8 {[%clk 0:01:22]} 28. Nc2 {[%clk 0:01:18]}  Nb7 {[%clk 0:01:15]} 29. Nb4 {[%clk 0:01:13]}  Nc5 {[%clk 0:01:15]} 30. f3 {[%clk 0:01:02]}  Nh5 {[%clk 0:01:03]} 31. Bf1 {[%clk 0:00:53]}  Nf4 {[%clk 0:01:02]} 32. Kh2 {[%clk 0:00:51]}  Qc7 {[%clk 0:00:36]} 33. g3 {[%clk 0:00:49]}  Ng6 {[%clk 0:00:36]} 34. h4 {[%clk 0:00:48]}  Qd8 {[%clk 0:00:34]} 35. Bh3 {[%clk 0:00:43]}  Bxh3 {[%clk 0:00:29]} 36. Kxh3 {[%clk 0:00:43]}  Qd7+ {[%clk 0:00:28]} 37. Kg2 {[%clk 0:00:40]}  Ne7 {[%clk 0:00:28]} 38. Nf1 {[%clk 0:00:22]}  Nb3 {[%clk 0:00:24]} 39. Rxc8+ {[%clk 0:00:20]}  Qxc8 {[%clk 0:00:24]} 40. Nd2 {[%clk 0:00:20]}  Nd4 {[%clk 0:00:20]} 41. Qd3 {[%clk 0:00:16]}  Qc1 {[%clk 0:00:16]} 42. Nf1 {[%clk 0:00:14]}  Qxb2+ {[%clk 0:00:15]} 43. Kh3 {[%clk 0:00:13]}  Qb3 {[%clk 0:00:13]} 44. Qxb3 {[%clk 0:00:10]}  axb3 {[%clk 0:00:13]} 45. Nd3 {[%clk 0:00:11]}  Nxf3 {[%clk 0:00:10]} 46. Ne3 {[%clk 0:00:10]}  Nc8 {[%clk 0:00:09]} 47. Nd1 {[%clk 0:00:08]}  Nb6 {[%clk 0:00:09]} 48. N1b2 {[%clk 0:00:08]}  Na4 {[%clk 0:00:08]} 49. Nd1 {[%clk 0:00:06]}  Nd4 {[%clk 0:00:06]} 50. Kg2 {[%clk 0:00:06]}  Kf8 {[%clk 0:00:06]} 51. Kf2 {[%clk 0:00:06]}  g5 {[%clk 0:00:06]} 52. h5 {[%clk 0:00:06]}  f5 {[%clk 0:00:05]} 53. exf5 {[%clk 0:00:05]}  Nxf5 {[%clk 0:00:06]} 54. g4 {[%clk 0:00:05]}  Ne7 {[%clk 0:00:05]} 55. Ke3 {[%clk 0:00:03]}  Nxd5+ {[%clk 0:00:05]} 56. Ke4 {[%clk 0:00:04]}  Ndc3+ {[%clk 0:00:04]} 57. Nxc3 {[%clk 0:00:04]}  Nxc3+ {[%clk 0:00:05]} 58. Kf5 {[%clk 0:00:05]}  Kf7 {[%clk 0:00:04]} 59. Nb2 {[%clk 0:00:03]}  Na4 {[%clk 0:00:04]} 60. Nd3 {[%clk 0:00:03]}  b2 {[%clk 0:00:04]} 61. Nxb2 {[%clk 0:00:02]}  Nxb2 {[%clk 0:00:05]} 62. Ke4 {[%clk 0:00:03]}  Ke6 {[%clk 0:00:05]} 63. Ke3 {[%clk 0:00:04]}  d5 {[%clk 0:00:05]} 64. Kd2 {[%clk 0:00:04]}  d4 {[%clk 0:00:05]} 65. Kc2 {[%clk 0:00:05]}  Nc4 {[%clk 0:00:06]} 66. Kb3 {[%clk 0:00:06]}  Kd5 {[%clk 0:00:05]} 67. Kb4 {[%clk 0:00:07]}  Nxa3 {[%clk 0:00:05]} 68. Kxa3 {[%clk 0:00:07]}  d3 {[%clk 0:00:05]} 69. Kb2 {[%clk 0:00:08]}  Kd4 {[%clk 0:00:05]} 70. Kc1 {[%clk 0:00:07]}  e4 {[%clk 0:00:06]} 71. Kd1 {[%clk 0:00:08]}  e3 {[%clk 0:00:07]} 72. Ke1 {[%clk 0:00:08]}  b4 {[%clk 0:00:08]} 73. Kd1 {[%clk 0:00:08]}  b3 {[%clk 0:00:09]} 74. Ke1 {[%clk 0:00:09]}  b2 {[%clk 0:00:09]} 75. Kf1 {[%clk 0:00:10]}  b1=Q+ {[%clk 0:00:09]} 76. Kg2 {[%clk 0:00:11]}  Qe1 {[%clk 0:00:08]} 77. Kh3 {[%clk 0:00:11]}  Qf1+ {[%clk 0:00:08]} 78. Kg3 {[%clk 0:00:11]}  Qf2+ {[%clk 0:00:08]} 79. Kh3 {[%clk 0:00:10]}  Qf3+ {[%clk 0:00:09]} 80. Kh2 {[%clk 0:00:10]}  Qxg4 {[%clk 0:00:10]} 81. Kh1 {[%clk 0:00:09]}  Qxh5+ {[%clk 0:00:10]} 82. Kg2 {[%clk 0:00:09]}  d2 {[%clk 0:00:11]} 83. Kg3 {[%clk 0:00:08]}  Qh4+ {[%clk 0:00:11]} 84. Kf3 {[%clk 0:00:08]}  Qf4+ {[%clk 0:00:10]} 85. Kg2 {[%clk 0:00:07]}  d1=Q {[%clk 0:00:09]} 0-1


[Site "https://www.chess.com"]

[Event "Titled Tuesday Blitz March 29 Late 2022"]
[White "Fishbein, Alexander"]
[Black "Iskusnyh, Sergei"]
[WhiteFideId "2000377"]
[BlackFideId "4120027"]
[WhiteElo "2442"]
[BlackElo "2492"]
[Result "0-1"]
[Round "07"]
[TimeControl "180+1"]
[Date "2022.03.29"]
[WhiteClock "0:00:04"]
[BlackClock "0:00:04"]

1. e4 {[%clk 0:03:00]}  e6 {[%clk 0:02:59]} 2. d4 {[%clk 0:02:59]}  d5 {[%clk 0:03:00]} 3. exd5 {[%clk 0:02:59]}  exd5 {[%clk 0:03:00]} 4. Nf3 {[%clk 0:02:59]}  Nf6 {[%clk 0:02:58]} 5. Bd3 {[%clk 0:02:57]}  c5 {[%clk 0:02:58]} 6. dxc5 {[%clk 0:02:57]}  Bxc5 {[%clk 0:02:57]} 7. O-O {[%clk 0:02:57]}  O-O {[%clk 0:02:57]} 8. Nc3 {[%clk 0:02:57]}  Nc6 {[%clk 0:02:54]} 9. h3 {[%clk 0:02:57]}  h6 {[%clk 0:02:43]} 10. Bf4 {[%clk 0:02:54]}  Re8 {[%clk 0:02:42]} 11. Qd2 {[%clk 0:02:52]}  Bb4 {[%clk 0:01:48]} 12. a3 {[%clk 0:02:48]}  Ne4 {[%clk 0:01:47]} 13. Bxe4 {[%clk 0:02:46]}  dxe4 {[%clk 0:01:39]} 14. Qxd8 {[%clk 0:02:43]}  Rxd8 {[%clk 0:01:33]} 15. Nxe4 {[%clk 0:02:39]}  Be7 {[%clk 0:01:31]} 16. Rad1 {[%clk 0:02:33]}  Bf5 {[%clk 0:01:30]} 17. Rxd8+ {[%clk 0:02:27]}  Rxd8 {[%clk 0:01:29]} 18. Re1 {[%clk 0:02:27]}  Nd4 {[%clk 0:01:10]} 19. Nxd4 {[%clk 0:02:17]}  Rxd4 {[%clk 0:01:10]} 20. f3 {[%clk 0:02:17]}  Be6 {[%clk 0:01:03]} 21. c3 {[%clk 0:02:14]}  Rd7 {[%clk 0:00:57]} 22. Be3 {[%clk 0:02:12]}  b6 {[%clk 0:00:55]} 23. Kf2 {[%clk 0:02:09]}  f5 {[%clk 0:00:55]} 24. Nd2 {[%clk 0:01:57]}  g5 {[%clk 0:00:53]} 25. Ke2 {[%clk 0:01:44]}  Bf6 {[%clk 0:00:46]} 26. f4 {[%clk 0:01:37]}  Bd5 {[%clk 0:00:44]} 27. g3 {[%clk 0:01:34]}  Re7 {[%clk 0:00:40]} 28. Kf2 {[%clk 0:01:32]}  Kf7 {[%clk 0:00:39]} 29. Bd4 {[%clk 0:01:30]}  gxf4 {[%clk 0:00:34]} 30. Rxe7+ {[%clk 0:01:20]}  Bxe7 {[%clk 0:00:35]} 31. gxf4 {[%clk 0:01:19]}  Bh4+ {[%clk 0:00:31]} 32. Kf1 {[%clk 0:01:19]}  Ke6 {[%clk 0:00:30]} 33. Bf2 {[%clk 0:01:15]}  Bf6 {[%clk 0:00:27]} 34. Ke2 {[%clk 0:01:14]}  Bg2 {[%clk 0:00:26]} 35. h4 {[%clk 0:01:13]}  Kd5 {[%clk 0:00:26]} 36. c4+ {[%clk 0:01:09]}  Kc6 {[%clk 0:00:22]} 37. b4 {[%clk 0:01:07]}  Bb2 {[%clk 0:00:21]} 38. a4 {[%clk 0:01:05]}  Bc3 {[%clk 0:00:20]} 39. b5+ {[%clk 0:01:05]}  Kd6 {[%clk 0:00:19]} 40. Nb3 {[%clk 0:01:03]}  Be4 {[%clk 0:00:16]} 41. c5+ {[%clk 0:01:00]}  Kc7 {[%clk 0:00:08]} 42. cxb6+ {[%clk 0:00:54]}  axb6 {[%clk 0:00:08]} 43. Kd1 {[%clk 0:00:25]}  h5 {[%clk 0:00:08]} 44. Be3 {[%clk 0:00:16]}  Kb7 {[%clk 0:00:06]} 45. Kc1 {[%clk 0:00:16]}  Bd3 {[%clk 0:00:05]} 46. Bd4 {[%clk 0:00:14]}  Bc4 {[%clk 0:00:04]} 47. Nc5+ {[%clk 0:00:13]}  bxc5 {[%clk 0:00:03]} 48. Bxc3 {[%clk 0:00:14]}  Bb3 {[%clk 0:00:04]} 49. a5 {[%clk 0:00:14]}  Bc4 {[%clk 0:00:04]} 50. a6+ {[%clk 0:00:09]}  Kb6 {[%clk 0:00:03]} 51. a7 {[%clk 0:00:07]}  Kxa7 {[%clk 0:00:03]} 52. Kd2 {[%clk 0:00:07]}  Bxb5 {[%clk 0:00:02]} 53. Bf6 {[%clk 0:00:07]}  Kb6 {[%clk 0:00:03]} 54. Kc3 {[%clk 0:00:07]}  Kc6 {[%clk 0:00:03]} 55. Bg5 {[%clk 0:00:07]}  Kd5 {[%clk 0:00:04]} 56. Bf6 {[%clk 0:00:06]}  Ke4 {[%clk 0:00:04]} 57. Bg5 {[%clk 0:00:07]}  Be2 {[%clk 0:00:04]} 58. Kb3 {[%clk 0:00:07]}  Kd3 {[%clk 0:00:04]} 59. Bf6 {[%clk 0:00:06]}  c4+ {[%clk 0:00:04]} 60. Kb4 {[%clk 0:00:06]}  Bf3 {[%clk 0:00:04]} 61. Be5 {[%clk 0:00:06]}  Be2 {[%clk 0:00:04]} 62. Bf6 {[%clk 0:00:06]}  Ke3 {[%clk 0:00:04]} 63. Be5 {[%clk 0:00:04]}  Kf3 {[%clk 0:00:04]} 64. Kc3 {[%clk 0:00:03]}  Kg4 {[%clk 0:00:04]} 65. Kd4 {[%clk 0:00:03]}  Bd3 {[%clk 0:00:04]} 66. Ke3 {[%clk 0:00:03]}  Kxh4 {[%clk 0:00:05]} 67. Bf6+ {[%clk 0:00:04]}  Kg3 {[%clk 0:00:04]} 68. Bc3 {[%clk 0:00:02]}  h4 {[%clk 0:00:05]} 69. Be1+ {[%clk 0:00:03]}  Kg4 {[%clk 0:00:04]} 70. Bf2 {[%clk 0:00:03]}  h3 {[%clk 0:00:03]} 71. Bg1 {[%clk 0:00:03]}  Kg3 {[%clk 0:00:03]} 72. Bf2+ {[%clk 0:00:04]}  Kg2 {[%clk 0:00:04]} 0-1


[Site "https://www.chess.com"]